Cogmind - Beta 13 @@@ ROGUE MODE // 2024.04.03 @ 08:41:06 Player: Gingerlink Result: Self-destructed Performance ------------- Evolutions (2) 1000 Regions Visited (4) 800 Robots Destroyed (57) 285 Value Destroyed (1314) 1314 Prototype IDs (3) 60 Alien Tech Used (0) 0 Bonus (105) 105 TOTAL SCORE: 3564 Bonus ------- High Alert Combat Kills 35 Follower Combat Kills 88 Friendly Fire -18 Cogmind --------- Core Integrity 334/550 Matter 231/300 Energy 14/100 System Corruption 2% Temperature Cool (0) Movement Walking (125) Location -8/Materials Parts ------- > --- POWER (2) -------- (None) > --- PROPULSION (4) --- Aluminum Leg Titanium Leg > --- UTILITY (3) ------ Medium Storage Unit Light Armor Plating > --- WEAPON (2) ------- Heavy Particle Cannon > --- INVENTORY (10) --- Flight Unit VTOL Module VTOL Module Improved Terrain Scanner Particle Charger ECM Suite Grenade Launcher Peak State ------------ > --- POWER ------------ Light Ion Engine Improved Ion Engine > --- PROPULSION ------- Titanium Leg Titanium Leg Improved VTOL Module Improved VTOL Module > --- UTILITY ---------- Medium Storage Unit Improved Terrain Scanner Medium Armor Plating > --- WEAPON ----------- Improved Assault Rifle Mini Grenade Launcher > --- INVENTORY -------- Aluminum Leg Flight Unit Flight Unit VTOL Module VTOL Module Particle Charger ECM Suite Heavy Particle Cannon Grenade Launcher [Rating: 29] Favorites ----------- Power Ion Engine Engine Ion Engine Propulsion Titanium Leg Treads Light Treads Leg Titanium Leg Flight Unit VTOL Module Utility Medium Storage Unit Device Seismic Detector Storage Medium Storage Unit Hackware Hacking Suite Protection Medium Armor Plating Weapon Assault Rifle Energy Cannon Particle Cannon Ballistic Gun Assault Rifle Launcher Mini Grenade Launcher Build | -11 -10 -9 -9 -8 ------- Run | Yrd Mat Mat Min Mat Slots Evolved 4 | . . 2 . 2 Power 1 | . . . . 1 Propulsion 2 | . . 2 . . Utility 1 | . . . . 1 Weapon . | . . . . . Parts Attached 39 | 5 3 17 1 13 Power 3 | 1 . 1 . 1 Engine 3 | 1 . 1 . 1 Core . | . . . . . Reactor . | . . . . . Propulsion 21 | 2 . 10 . 9 Treads 4 | 2 . 2 . . Leg 9 | . . 7 . 2 Wheel . | . . . . . Hover . | . . . . . Flight 8 | . . 1 . 7 Utility 9 | 1 2 3 1 2 Device 3 | . 1 1 . 1 Storage 2 | 1 1 . . . Processor . | . . . . . Hackware 1 | . . 1 . . Protection 3 | . . 1 1 1 Artifact . | . . . . . Weapon 6 | 1 1 3 . 1 Energy Gun . | . . . . . Energy Cannon 3 | . 1 1 . 1 Ballistic Gun 2 | 1 . 1 . . Ballistic Cannon . | . . . . . Launcher 1 | . . 1 . . Special Weapon . | . . . . . Impact Weapon . | . . . . . Slashing Weapon . | . . . . . Piercing Weapon . | . . . . . Special Melee Weapon . | . . . . . Unidentified Prototypes 3 | . . 2 . 1 Parts Lost 12 | . . 4 . 8 Power 2 | . . . . 2 Propulsion 4 | . . 1 . 3 Utility 2 | . . 1 . 1 Weapon 4 | . . 2 . 2 Highest Loss Streak 4 | . . 1 . 4 To Critical Strikes . | . . . . . Average Slot Usage (%) 93 | . 85 98 92 85 Engine 11 | . 14 11 11 12 Treads 15 | . 28 22 . . Leg 22 | . . 20 44 25 Flight 1 | . . . . 9 Device 3 | . 11 3 . 4 Storage 11 | . 14 11 11 9 Hackware 3 | . . 6 . . Protection 2 | . . . 4 6 Energy Cannon 6 | . 2 10 . . Ballistic Gun 9 | . 14 7 11 8 Launcher 4 | . . 3 11 7 Naked Turns . | . . . . . Heaviest Build 32 | 12 22 27 28 32 Greatest Support 83 | 40 40 83 51 51 Greatest Overweight (x) 6 | 3 . 1 . 6 Average Overweight (x) . | . . . . . Largest Inventory Capacity 10 | 8 10 10 10 10 Average Capacity 9 | 7 9 10 10 10 Most Carried 10 | 2 10 10 10 10 Average Carried 8 | 1 6 9 9 8 Final Capacity 10 | 8 10 10 10 10 Final Carried 10 | 2 10 10 10 7 Class Distribution -------------------- 100% | Mutant Dominant Class ---------------- Mutant | -10/Materials Mutant | -9/Materials Mutant | -9/Mines Mutant | -8/Materials Resources | -11 -10 -9 -9 -8 ----------- Run | Yrd Mat Mat Min Mat Matter Collected 966 | 200 95 451 52 168 Remotely . | . . . . . Salvage Created 1404 | . 95 985 71 253 Parts 99 | . 11 57 9 22 Haulers Intercepted 3 | . . 1 . 2 Recyclers Shooed 2 | . 1 1 . . Parts Field Recycled . | . . . . . Retrieved Matter . | . . . . . Parts Self-Destructed . | . . . . . Prevented . | . . . . . Kills | -11 -10 -9 -9 -8 ------- Run | Yrd Mat Mat Min Mat Combat Hostiles Destroyed 42 | . 2 25 4 11 Guns 9 | . 2 5 2 . Cannons 13 | . . 11 . 2 AOE 19 | . . 8 2 9 Classes Destroyed 12 | . 2 8 . 2 Worker 1 | . . . . 1 Builder 2 | . . 2 . . Tunneler 3 | . . 2 1 . Hauler 3 | . . 1 . 2 Recycler 1 | . . 1 . . Mechanic 1 | . . . . 1 Operator 2 | . . 2 . . Watcher 2 | . 1 . . 1 Swarmer 16 | . . 5 3 8 Grunt 20 | . 2 15 1 2 Duelist 1 | . . 1 . . Sentry 5 | . . 4 . 1 Best Kill Streak 11 | . 1 11 3 8 Combat Bots Only 7 | . 1 7 3 5 Max Kills in Single Turn 4 | . 1 2 2 4 Gunslinging . | . . . . . Exploded 3 | . . 1 2 3 Melee . | . . . . . Uniques/NPCs Destroyed . | . . . . . Combat | -11 -10 -9 -9 -8 -------- Run | Yrd Mat Mat Min Mat Hostile Shots Fired 226 | . 8 141 3 74 Missed 56 | . 1 31 . 24 Damage Taken 2280 | . 93 1340 24 823 Core 439 | . 24 199 . 216 Absorbed by Shields . | . . . . . Core Remaining (%) 80 | 100 90 . 50 . Volleys Fired 120 | . 13 83 4 20 Largest 2 | . 1 2 2 2 Hottest 105 | . 20 105 53 98 Shots Fired 198 | . 13 142 7 36 Gun 75 | . 13 42 4 16 Cannon 93 | . . 82 . 11 Launcher 30 | . . 18 3 9 Special . | . . . . . Kinetic 75 | . 13 42 4 16 Thermal 93 | . . 82 . 11 Explosive 30 | . . 18 3 9 Electromagnetic . | . . . . . Robot Hit Streak 10 | . 6 10 2 10 Robot Miss Streak 5 | . 1 5 . 1 Penetration Max . | . . . . . Secondary Targets . | . . . . . Shots Hit Robots 90 | . 10 62 2 16 Core Hits 81 | . 7 44 7 23 Critical Kills 1 | . . 1 . . Critical Parts Destroyed . | . . . . . Critical Strikes 1 | . . 1 . . Meltdown 1 | . . 1 . . Melee Attacks . | . . . . . Impact . | . . . . . Slashing . | . . . . . Piercing . | . . . . . Sneak Attacks . | . . . . . Combat Hostiles . | . . . . . Follow-up Attacks . | . . . . . Damage Inflicted 3588 | . 128 2064 233 1163 Guns 559 | . 122 251 51 135 Cannons 1235 | . . 1010 . 225 Explosions 1721 | . . 744 180 797 Melee . | . . . . . Ramming 73 | . 6 59 2 6 Kinetic 559 | . 122 251 51 135 Thermal 1235 | . . 1010 . 225 Explosive 1721 | . . 744 180 797 Electromagnetic . | . . . . . Impact . | . . . . . Slashing . | . . . . . Piercing . | . . . . . Highest Corruption 2 | . . . . 2 Average Corruption 2 | . . . . 2 Corruption Purged . | . . . . . Corruption Blocked . | . . . . . Effects 1 | . . . . 1 Matter Fused 1 | . . . . 1 Overload Shots . | . . . . . Overflow Damage 74 | . . 54 1 19 Projectiles 30 | . . 30 . . Explosions 44 | . . 24 1 19 Melee . | . . . . . Knockbacks 1 | . . . . 1 Impact 1 | . . . . 1 Kinetic . | . . . . . Secondary . | . . . . . Self-Inflicted Damage 44 | . . 44 . . Shots 1 | . . 1 . . Rammed 8 | . 3 5 . . Targets Rammed 14 | . 3 9 1 1 Kicked 6 | . . 4 1 1 Crushed . | . . . . . Highest Temperature 425 | . 17 420 . 425 Average Temperature 116 | . 12 119 . 105 Received Heat Transfer 891 | . 69 570 . 252 Effects 7 | . . 7 . . Shutdowns 2 | . . 2 . . Energy Bleed 3 | . . 3 . . Damage (minor) 2 | . . 2 . . Siege Activations . | . . . . . Robots Corrupted . | . . . . . Combat Hostiles . | . . . . . Parts Fried . | . . . . . Impact Corruptions . | . . . . . Robots Melted 1 | . . 1 . . Combat Hostiles 1 | . . 1 . . Parts Melted 5 | . . 5 . . Heat Transferred 2035 | . . 1702 . 333 Parts Sabotaged . | . . . . . Parts Stolen . | . . . . . Parts Stripped . | . . . . . Power Chain Reactions . | . . . . . Alert | -11 -10 -9 -9 -8 ------- Run | Yrd Mat Mat Min Mat Peak Influence 536 | . 87 536 356 372 Initial 208 | . . . 208 75 Average 154 | . 29 157 257 176 Maximum Alert Level 2 | . . 2 1 1 Low Security (%) 69 | 100 100 70 31 74 Level 1 28 | . . 24 68 25 Level 2 2 | . . 4 . . Level 3 . | . . . . . Level 4 . | . . . . . Level 5 . | . . . . . High Security . | . . . . . Max Security . | . . . . . Squads Dispatched 7 | . 1 6 . . Investigation 1 | . . 1 . . Extermination . | . . . . . Reinforcement 6 | . 1 5 . . Assault . | . . . . . Garrison . | . . . . . Intercept . | . . . . . Searches Triggered . | . . . . . Construction Impeded 1 | . . 1 . . Haulers Reinforced . | . . . . . Active Scanning Responses . | . . . . . Cargo Convoy Interrupts . | . . . . . Stealth | -11 -10 -9 -9 -8 --------- Run | Yrd Mat Mat Min Mat Distress Signals 4 | . . 3 . 1 Communications Jammed . | . . . . . Distress Signals . | . . . . . Times Spotted 73 | . 6 45 8 14 Peak Tracking Total 6 | . 3 6 3 5 Tactical Retreats 3 | . . 2 . 1 Traps | -11 -10 -9 -9 -8 ------- Run | Yrd Mat Mat Min Mat Traps Triggered 1 | . . 1 . . Indirectly . | . . . . . Trap Hack Attempts . | . . . . . Triggered . | . . . . . Disarmed . | . . . . . Reprogrammed . | . . . . . Reused . | . . . . . Traps Extracted . | . . . . . Installed . | . . . . . Triggered . | . . . . . Machines | -11 -10 -9 -9 -8 ---------- Run | Yrd Mat Mat Min Mat Machines Disabled 2 | . . 1 1 . Max in Single Turn 1 | . . 1 1 . Machines Repaired . | . . . . . Machines Dismantled . | . . . . . Machines Sabotaged . | . . . . . Overloaded Fab Kills . | . . . . . Hacking | -11 -10 -9 -9 -8 --------- Run | Yrd Mat Mat Min Mat Machines Accessed 2 | . . 2 . . Terminals 1 | . . 1 . . Fabricators . | . . . . . Repair Stations . | . . . . . Recycling Units . | . . . . . Scanalyzers 1 | . . 1 . . Garrison Access . | . . . . . Total Hacks 7 | . . 7 . . Successful 5 | . . 5 . . Failed 2 | . . 2 . . Catastrophic 1 | . . 1 . . Database Lockouts . | . . . . . Manual 2 | . . 2 . . Terminals 2 | . . 2 . . Fabricators . | . . . . . Repair Stations . | . . . . . Recycling Units . | . . . . . Scanalyzers 5 | . . 5 . . Garrison Access . | . . . . . Terminal Hacks . | . . . . . Fabricator Hacks . | . . . . . Repair Station Hacks . | . . . . . Recycling Unit Hacks . | . . . . . Scanalyzer 5 | . . 5 . . Insert Component 2 | . . 2 . . Analyze 3 | . . 3 . . Garrison Access Hacks . | . . . . . Unauthorized Hacks . | . . . . . Terminals . | . . . . . Fabricators . | . . . . . Repair Stations . | . . . . . Recycling Units . | . . . . . Scanalyzers . | . . . . . Garrison Access . | . . . . . Data Cores Recovered . | . . . . . Used . | . . . . . Hacking Detections 1 | . . 1 . . Full Trace Events . | . . . . . Feedback Events . | . . . . . Feedback Blocked . | . . . . . Robot Schematics Acquired . | . . . . . Robots Built . | . . . . . Authchips . | . . . . . Time . | . . . . . Total Robot Build Rating . | . . . . . Part Schematics Acquired 2 | . . 2 . . Parts Built . | . . . . . Authchips . | . . . . . Time . | . . . . . Total Part Build Rating . | . . . . . Parts Repaired . | . . . . . Time . | . . . . . Parts Recycled . | . . . . . Recycled Matter . | . . . . . Retrieved Matter . | . . . . . Retrieved Components . | . . . . . Parts Scanalyzed 2 | . . 2 . . Part Schematics Acquired 2 | . . 2 . . Parts Damaged . | . . . . . Bothacking | -11 -10 -9 -9 -8 ------------ Run | Yrd Mat Mat Min Mat Used RIF Installer . | . . . . . Robots Hacked . | . . . . . Non-combat . | . . . . . Combat . | . . . . . Robot Hacks Applied . | . . . . . Relay Couplers Released . | . . . . . Fabnet Peak Effective % . | . . . . . Robots Rewired . | . . . . . Allies Hacked . | . . . . . Hacks Repelled . | . . . . . Allies | -11 -10 -9 -9 -8 -------- Run | Yrd Mat Mat Min Mat Total Allies 3 | . . . 3 . Largest Group 3 | . . . 3 . Highest-Rated Group 40 | . . . 40 . Highest-Rated Ally 16 | . . . 16 . Total Orders . | . . . . . Ally Attacks 17 | . . . 17 . Total Damage 172 | . . . 172 . Kills 4 | . . . 4 . Allies Corrupted . | . . . . . Allies Melted . | . . . . . Intel | -11 -10 -9 -9 -8 ------- Run | Yrd Mat Mat Min Mat Robot Analysis Total . | . . . . . Derelict Logs Recovered 1 | . . . 1 . Drone Launches . | . . . . . Drone Recoveries . | . . . . . Exploration | -11 -10 -9 -9 -8 ------------- Run | Yrd Mat Mat Min Mat Turns Passed 3438 | 116 471 1766 598 487 Spaces Moved 1906 | 71 237 830 448 320 Core 15 | 15 . . . . Treads 927 | 56 237 634 . . Legs 871 | . . 196 448 227 Wheels . | . . . . . Hover . | . . . . . Flight 93 | . . . . 93 Fastest Speed 50 | 50 160 130 130 104 Average Speed 143 | 151 160 153 130 124 Slowest Speed 475 | 200 160 200 130 475 Overloaded Moves . | . . . . . Propulsion Burnouts . | . . . . . Robots Hopped . | . . . . . Cave-ins Triggered . | . . . . . Exploration Rate (%) 40 | 5 40 55 70 30 Regions Visited 4 Branch Regions 1 Pre-discovered Areas . | . . . . . Known Exits Taken . | . . . . . Unknown Exits Taken 4 | 1 1 1 1 . Scrap Searched 3 | . . . 3 . Spaces Dug 8 | . . 8 . . Terrain Destroyed 223 | . . 121 23 79 Melee . | . . . . . Projectile 14 | . . 12 . 2 AOE 209 | . . 109 23 77 Terrain Rammed . | . . . . . Walls Destroyed . | . . . . . Machines Disabled . | . . . . . Actions | -11 -10 -9 -9 -8 --------- Run | Yrd Mat Mat Min Mat Total 2408 | 77 313 1186 457 375 Wait 273 | . 51 212 . 10 Move 1902 | 70 236 829 447 320 Hop . | . . . . . Pick Up 25 | 2 7 13 2 1 Fast Attach 24 | 5 2 10 1 6 Attach 13 | . . 6 . 7 Detach 9 | . . 5 . 4 Swap 2 | . 1 1 . . Drop 26 | . . 18 2 6 Fire 120 | . 13 83 4 20 Melee . | . . . . . Ram . | . . . . . Kick 6 | . . 4 1 1 Crush 8 | . 3 5 . . Escape Stasis . | . . . . . Rewire . | . . . . . Trap . | . . . . . Miscellaneous . | . . . . . Route ------- -11/Scrapyard -10/Materials -9/Materials (discovered 2 exits: [*Mat] / [*Min]) -9/Mines (discovered 2 exits: [*Mat] / [*Zio]) -8/Materials History --------- Turn | Location | Event 30 | -11/Scrapyard | Discovered new exit (range 16) 117 | -11/Scrapyard | Entered Materials 324 | -10/Materials | Build established: Mutant 531 | -10/Materials | Discovered new exit (range 16) 588 | -10/Materials | Entered another Materials area 588 | -9/Materials | Evolved 2 slots: Propulsion x2 1651 | -9/Materials | Discovered new exit (range 7) 2039 | -9/Materials | Discovered new exit (range 10) 2308 | -9/Materials | Destroyed 7 combat bots 2354 | -9/Materials | Entered Mines 2366 | -9/Mines | Learned Materials stockpile data 2659 | -9/Mines | Assisted by bots powering up and referring to "LRC-V3" 2891 | -9/Mines | Assembled infested the area 2899 | -9/Mines | A weapon hastily lodged in a ceiling crevice suddenly fell to the ground 2913 | -9/Mines | A Derelict revealed a hidden shortcut to a safe place 2924 | -9/Mines | Discovered new exit (range 16) 2952 | -9/Mines | Entered Materials 2952 | -8/Materials | Evolved 2 slots: Power x1, Utility x1 3310 | -8/Materials | Lost 3 parts (1p1n1u) 3411 | -8/Materials | Lost 4 parts (1p2n1w) 3439 | -8/Materials | Self-destructed Last Messages --------------- U-05 Engineer builds a Wall. R-06 Scavenger collects Faulty Imp. VTOL Module. U-05 Engineer lays Concrete. U-05 Engineer builds a Wall. R-06 Scavenger collects Imp. VTOL Module. Acquired 7 matter. U-05 Engineer lays Concrete. Mni. Grenade Launcher destroyed. Critical hit (Burn: +37). Flight Unit destroyed. Imp. VTOL Module destroyed. Imp. Ion Engine destroyed. G-47 Trooper destroyed. Imp. Assault Rifle destroyed. U-05 Engineer builds a Wall. Y-45 Defender destroyed. Acquired 52 matter. Acquired Lgt. Armor Plating. Acquired 46 matter. System corrupted: Matter fused (-5). Map ----- +----------------------------------------------------+ | ???????????????????????????????????????? | | ???????????????????????????????????????? | | ???????????????????????????????????????? | | ???????????????????????????????????????? | | ???????????????????????????????????????? | | ???????????????????????????????????????? | | ???????????????????????????????????????? | | ???????????????????????????????????????? | | ???????????????????????????????????????? | | ???????????????????????????????????????? | | ???????????????????????????????????????? | | ???????????????????????????????????????? | | ???????????????????????????????????????? | | ???????????????????????????????????????? | | ??????????##########???????????????????? | | ???????!??# #???????????????????? | | ??????????# =#???????????????????? | | ??????????#/ #???????????????????? | | ??????????# / #???????????????????? | | ??????????# ]] #???????????????????? | | ??????????# ]! / #???????????????????? | | ??????????# ] #???????????????????? | | ??????????# [[! ##??????????????????? | | ??????????# ! ##??????????????????? | | ???????########/#####??????????????????? | | ????# @=#?????????????????????? | | ???????####### #?????????????????????? | | ?????????????# u #?????????????????????? | | ?????????????# r#?????????????????????? | | ?????????????# #?????????????????????? | | ?????????????# #?????????????????????? | | ????????????## ##????????????????????? | | ????????????# ##############???????? | | ????????????# ??????? | | ????????????+ ??????? | | ????????????# ??????? | | ????????????# ##############???????? | | ????????????### #?########???????????? | | ??????????????# #?# """ #???????????? | | ??????????????# #?# """ !#???????????? | | ??????????????# #?# """ #?????????### | | ??????????????# #?# #??????? | | ??????????????# #?# !#?????? ! | | ??????????????# ###* #????? | | ??????????????# ###+#######? | | ??????????????# # ""?? | | ??????????????# + "" "??? | | ??????????????# # S"" ""?? | | ??????????????# " "" ? | | ??????????????############# #######??? | +----------------------------------------------------+ Best States ------------- Heat Dissipation 31 Energy Generation 17 Energy Capacity 290 Matter Stores 300 Matter Capacity 300 Sight Range 16 Terrain Scan Range 16 Terrain Scan Density 10 Armor Coverage 225 Evasion (%) 55 Recoil Reduction 4 Particle Charging 15 Offensive Hacking 10 Item Schematics ----------------- Particle Cannon | -9/Materials | Scanalyzed Mni. Grenade Launcher | -9/Materials | Scanalyzed Robot Schematics ------------------ None Fabricated ------------ Nothing Alien Tech Used ----------------- None Achievements -------------- None Challenges ------------ None Game ------ Seed DeliveryDisruptionUnit Manual? 0 Play Time 00:43:38 Cumulative 5.6 hours Start 2024.04.02 @ 17:47:53 End 2024.04.03 @ 08:41:06 Sessions 3 Manual Loads 0 Difficulty Rogue Special Mode None Game No. 11 Rogue 11 Adventurer 0 Explorer 0 Win Type - Total 0 Types 0/0/0/0/0/0/0/0/0 Lore% 1 Gallery% 11 Achievement% 7 Wizard Run 0 Options --------- Layout 0 ASCII 0 Keyboard 0 Movement Vi Keybinds 0 Fullscreen 2 Font 24/Smallcaps Map View 76x50 Zoom Use 0% Tactical HUD 0 Map Filters NONE Filters NONE Steam 1 RUN: 2f7fc90b-4970-4b6d-9030-70ea46051166